[Event "FIDE U16 Olympiad_boards_1-80"]
[Site "Eindhoven, Netherlands"]
[Date "2023.08.14"]
[Round "3.5"]
[White "Xue, Haowen"]
[Black "Magold, Filip"]
[Result "1-0"]
[TimeControl "2700+10"]
[WhiteElo "2214"]
[BlackElo "2195"]

1. c4 {[%clk 00:45:18]} {[%emt 00:00:02]} c6 {[%clk 00:45:19]} {[%emt
00:00:01]} 2. d4 {[%clk 00:44:58]} {[%emt 00:00:30]} d5 {[%clk 00:45:28]}
{[%emt 00:00:02]} 3. Nc3 {[%clk 00:45:05]} {[%emt 00:00:02]} Nf6 {[%clk
00:45:37]} {[%emt 00:00:02]} 4. Nf3 {[%clk 00:45:12]} {[%emt 00:00:03]} dxc4
{[%clk 00:45:45]} {[%emt 00:00:02]} 5. a4 {[%clk 00:45:18]} {[%emt 00:00:03]}
Bf5 {[%clk 00:45:54]} {[%emt 00:00:02]} 6. e3 {[%clk 00:45:24]} {[%emt
00:00:04]} e6 {[%clk 00:45:53]} {[%emt 00:00:10]} 7. Bxc4 {[%clk 00:45:30]}
{[%emt 00:00:05]} Be7 {[%clk 00:45:14]} {[%emt 00:00:47]} 8. O-O {[%clk
00:45:32]} {[%emt 00:00:07]} O-O {[%clk 00:45:19]} {[%emt 00:00:05]} 9. Qe2
{[%clk 00:45:05]} {[%emt 00:00:38]} Bg6 {[%clk 00:44:34]} {[%emt 00:00:56]} 10.
Ne5 {[%clk 00:43:19]} {[%emt 00:01:56]} Nbd7 {[%clk 00:43:19]} {[%emt
00:01:25]} 11. Nxg6 {[%clk 00:43:23]} {[%emt 00:00:05]} hxg6 {[%clk 00:43:28]}
{[%emt 00:00:02]} 12. Rd1 {[%clk 00:42:35]} {[%emt 00:00:58]} a6 {[%clk
00:38:40]} {[%emt 00:04:58]} 13. Qc2 {[%clk 00:36:06]} {[%emt 00:06:38]} Qc7
{[%clk 00:32:23]} {[%emt 00:06:27]} 14. Bd2 {[%clk 00:34:40]} {[%emt 00:01:35]}
e5 {[%clk 00:31:40]} {[%emt 00:00:54]} 15. Qxg6 {[%clk 00:33:53]} {[%emt
00:00:56]} Nb6 {[%clk 00:30:07]} {[%emt 00:01:42]} 16. Bb3 {[%clk 00:32:50]}
{[%emt 00:01:14]} Rad8 {[%clk 00:27:51]} {[%emt 00:02:26]} 17. Ne2 {[%clk
00:30:23]} {[%emt 00:02:37]} Nbd5 {[%clk 00:26:22]} {[%emt 00:01:39]} 18. Qc2
{[%clk 00:29:00]} {[%emt 00:01:33]} Bd6 {[%clk 00:21:13]} {[%emt 00:05:20]} 19.
h3 {[%clk 00:27:52]} {[%emt 00:01:18]} Qe7 {[%clk 00:19:57]} {[%emt 00:01:26]}
20. dxe5 {[%clk 00:20:43]} {[%emt 00:07:18]} Qxe5 {[%clk 00:19:59]} {[%emt
00:00:08]} 21. Ng3 {[%clk 00:20:46]} {[%emt 00:00:07]} Rfe8 {[%clk 00:17:29]}
{[%emt 00:02:40]} 22. Be1 {[%clk 00:18:46]} {[%emt 00:02:10]} Nh5 {[%clk
00:14:22]} {[%emt 00:03:17]} 23. Nf1 {[%clk 00:18:22]} {[%emt 00:00:34]} Qg5
{[%clk 00:13:34]} {[%emt 00:00:58]} 24. Bxd5 {[%clk 00:15:41]} {[%emt
00:02:51]} cxd5 {[%clk 00:13:43]} {[%emt 00:00:02]} 25. Bc3 {[%clk 00:13:19]}
{[%emt 00:02:32]} Re6 {[%clk 00:12:40]} {[%emt 00:01:13]} 26. Rd4 {[%clk
00:13:08]} {[%emt 00:00:20]} f5 {[%clk 00:11:28]} {[%emt 00:01:22]} 27. Rad1
{[%clk 00:09:34]} {[%emt 00:03:44]} Rg6 {[%clk 00:11:05]} {[%emt 00:00:34]} 28.
f4 {[%clk 00:09:00]} {[%emt 00:00:44]} Bxf4 {[%clk 00:11:09]} {[%emt 00:00:06]}
29. exf4 {[%clk 00:08:51]} {[%emt 00:00:19]} Nxf4 {[%clk 00:11:17]} {[%emt
00:00:02]} 30. Qd2 {[%clk 00:06:27]} {[%emt 00:02:34]} Nxh3+ {[%clk 00:10:55]}
{[%emt 00:00:32]} 31. Kh2 {[%clk 00:06:26]} {[%emt 00:00:10]} f4 {[%clk
00:08:55]} {[%emt 00:02:10]} 32. Rxd5 {[%clk 00:06:13]} {[%emt 00:00:23]} Rxd5
{[%clk 00:05:34]} {[%emt 00:03:31]} 33. Qxd5+ {[%clk 00:06:20]} {[%emt
00:00:03]} Qxd5 {[%clk 00:05:43]} {[%emt 00:00:01]} 34. Rxd5 {[%clk 00:06:29]}
{[%emt 00:00:02]} Nf2 {[%clk 00:05:52]} {[%emt 00:00:01]} 35. Rf5 {[%clk
00:05:27]} {[%emt 00:01:11]} Nd3 {[%clk 00:05:12]} {[%emt 00:00:50]} 36. Kg1
{[%clk 00:05:16]} {[%emt 00:00:21]} Rb6 {[%clk 00:04:23]} {[%emt 00:00:59]} 37.
Nd2 {[%clk 00:04:07]} {[%emt 00:01:19]} Re6 {[%clk 00:02:27]} {[%emt 00:02:06]}
38. Nf3 {[%clk 00:03:37]} {[%emt 00:00:41]} Re2 {[%clk 00:01:25]} {[%emt
00:01:13]} 39. Rg5 {[%clk 00:03:21]} {[%emt 00:00:26]} Re7 {[%clk 00:01:04]}
{[%emt 00:00:31]} 40. Rd5 {[%clk 00:03:09]} {[%emt 00:00:22]} Nc1 {[%clk
00:01:03]} {[%emt 00:00:11]} 41. Ng5 {[%clk 00:03:01]} {[%emt 00:00:18]} 1-0

[Event "FIDE U16 Olympiad_boards_1-80"]
[Site "Eindhoven, Netherlands"]
[Date "2023.08.14"]
[Round "3.6"]
[White "Filip, Andrei"]
[Black "Xiao, Tong(Qd)"]
[Result "0-1"]
[TimeControl "2700+10"]
[WhiteElo "2182"]
[BlackElo "2128"]

1. e4 {[%emt 00:00:10]} c5 {[%clk 00:45:17]} 2. Nf3 {[%clk 00:45:21]} {[%emt
00:00:01]} d6 {[%clk 00:45:20]} {[%emt 00:00:07]} 3. Bb5+ {[%clk 00:45:27]}
{[%emt 00:00:04]} Bd7 {[%clk 00:45:23]} {[%emt 00:00:08]} 4. Bxd7+ {[%clk
00:45:32]} {[%emt 00:00:04]} Qxd7 {[%clk 00:45:30]} {[%emt 00:00:03]} 5. c4
{[%clk 00:45:35]} {[%emt 00:00:06]} Nc6 {[%clk 00:44:43]} {[%emt 00:00:58]} 6.
Nc3 {[%clk 00:45:18]} {[%emt 00:00:27]} Nf6 {[%clk 00:44:48]} {[%emt 00:00:05]}
7. d4 {[%clk 00:45:15]} {[%emt 00:00:12]} cxd4 {[%clk 00:44:56]} {[%emt
00:00:02]} 8. Nxd4 {[%clk 00:45:15]} {[%emt 00:00:09]} g6 {[%clk 00:45:03]}
{[%emt 00:00:04]} 9. f3 {[%clk 00:44:59]} {[%emt 00:00:27]} Bg7 {[%clk
00:45:00]} {[%emt 00:00:13]} 10. Be3 {[%clk 00:45:07]} {[%emt 00:00:02]} O-O
{[%clk 00:45:06]} {[%emt 00:00:04]} 11. O-O {[%clk 00:44:57]} {[%emt 00:00:19]}
Rfc8 {[%clk 00:44:27]} {[%emt 00:00:49]} 12. b3 {[%clk 00:42:19]} {[%emt
00:02:47]} Qd8 {[%clk 00:43:21]} {[%emt 00:01:16]} 13. Qd2 {[%clk 00:41:28]}
{[%emt 00:01:01]} Qa5 {[%clk 00:42:54]} {[%emt 00:00:38]} 14. Rfd1 {[%clk
00:38:55]} {[%emt 00:02:43]} a6 {[%clk 00:41:53]} {[%emt 00:01:11]} 15. a4
{[%clk 00:38:48]} {[%emt 00:00:17]} Nd7 {[%clk 00:40:28]} {[%emt 00:01:36]} 16.
Nde2 {[%clk 00:36:32]} {[%emt 00:02:25]} Rab8 {[%clk 00:36:43]} {[%emt
00:03:55]} 17. Rab1 {[%clk 00:36:03]} {[%emt 00:00:39]} Re8 {[%clk 00:34:46]}
{[%emt 00:02:06]} 18. Bf2 {[%clk 00:32:58]} {[%emt 00:03:16]} Nc5 {[%clk
00:32:59]} {[%emt 00:01:57]} 19. Qe3 {[%clk 00:29:15]} {[%emt 00:03:53]} Nb4
{[%clk 00:31:34]} {[%emt 00:01:35]} 20. Nd5 {[%clk 00:24:53]} {[%emt 00:04:32]}
b5 {[%clk 00:24:25]} {[%emt 00:07:19]} 21. Qd2 {[%clk 00:21:17]} {[%emt
00:03:45]} Ncd3 {[%clk 00:24:01]} {[%emt 00:00:35]} 22. Be1 {[%clk 00:13:01]}
{[%emt 00:08:27]} bxc4 {[%clk 00:23:45]} {[%emt 00:00:26]} 23. Nxb4 {[%clk
00:10:31]} {[%emt 00:02:40]} Qc5+ {[%clk 00:22:55]} {[%emt 00:01:00]} 24. Kf1
{[%clk 00:06:38]} {[%emt 00:04:02]} Rxb4 {[%clk 00:22:35]} {[%emt 00:00:30]} 25.
bxc4 {[%clk 00:04:38]} {[%emt 00:02:10]} Rxb1 {[%clk 00:22:36]} {[%emt
00:00:09]} 26. Rxb1 {[%clk 00:04:47]} {[%emt 00:00:02]} Qxc4 {[%clk 00:21:28]}
{[%emt 00:01:18]} 27. a5 {[%clk 00:03:32]} {[%emt 00:01:24]} Bf6 {[%clk
00:20:00]} {[%emt 00:01:38]} 28. Bg3 {[%clk 00:03:02]} {[%emt 00:00:41]} h5
{[%clk 00:19:48]} {[%emt 00:00:22]} 29. Rd1 {[%clk 00:02:34]} {[%emt 00:00:38]}
Nc5 {[%clk 00:19:40]} {[%emt 00:00:17]} 30. Kg1 {[%clk 00:02:02]} {[%emt
00:00:43]} Nb3 {[%clk 00:19:36]} {[%emt 00:00:14]} 31. Qe3 {[%clk 00:01:06]}
{[%emt 00:01:06]} Nxa5 {[%clk 00:19:07]} {[%emt 00:00:40]} 32. Nf4 {[%clk
00:00:48]} {[%emt 00:00:28]} Nc6 {[%clk 00:18:31]} {[%emt 00:00:45]} 33. Qa3
{[%clk 00:00:24]} {[%emt 00:00:34]} Rb8 {[%clk 00:17:23]} {[%emt 00:01:18]} 34.
Rc1 {[%clk 00:00:12]} {[%emt 00:00:23]} Bd4+ {[%clk 00:16:34]} {[%emt
00:00:59]} 35. Kh1 {[%clk 00:00:21]} {[%emt 00:00:01]} Bb2 {[%clk 00:15:51]}
{[%emt 00:00:53]} 36. Rxc4 {[%clk 00:00:27]} {[%emt 00:00:05]} Bxa3 {[%clk
00:16:00]} 37. h4 {[%clk 00:00:36]} {[%emt 00:00:01]} Bc5 {[%clk 00:15:54]}
{[%emt 00:00:15]} 38. Kh2 {[%clk 00:00:21]} {[%emt 00:00:25]} Rb5 {[%clk
00:15:19]} {[%emt 00:00:45]} 39. Nd5 {[%clk 00:00:18]} {[%emt 00:00:14]} Kf8
{[%clk 00:12:46]} {[%emt 00:02:43]} 40. Nc7 {[%clk 00:00:23]} {[%emt 00:00:05]}
Rb6 {[%clk 00:11:46]} {[%emt 00:01:10]} 41. Nd5 {[%clk 00:00:25]} {[%emt
00:00:08]} Rb1 {[%clk 00:11:45]} {[%emt 00:00:09]} 42. Bf4 {[%clk 00:00:22]}
{[%emt 00:00:15]} a5 {[%clk 00:11:10]} {[%emt 00:00:45]} 43. e5 {[%clk
00:00:19]} {[%emt 00:00:13]} Rd1 {[%clk 00:09:52]} {[%emt 00:01:28]} 44. Nc3
{[%clk 00:00:19]} {[%emt 00:00:10]} Rd4 {[%clk 00:09:47]} {[%emt 00:00:14]} 45.
Rxd4 {[%clk 00:00:19]} {[%emt 00:00:10]} Bxd4 {[%clk 00:09:54]} {[%emt
00:00:03]} 46. exd6 {[%clk 00:00:14]} {[%emt 00:00:15]} Bxc3 {[%clk 00:09:39]}
{[%emt 00:00:25]} 47. d7 {[%clk 00:00:23]} {[%emt 00:00:01]} a4 {[%clk
00:09:33]} {[%emt 00:00:16]} 0-1

[Event "FIDE U16 Olympiad_boards_1-80"]
[Site "Eindhoven, Netherlands"]
[Date "2023.08.14"]
[Round "3.7"]
[White "Kong, Xiangrui"]
[Black "Cnejev, Vladimir-Alexandru"]
[Result "1-0"]
[TimeControl "2700+10"]
[WhiteElo "2381"]
[BlackElo "2164"]

1. e4 {[%clk 00:45:18]} {[%emt 00:00:01]} e5 {[%clk 00:45:15]} {[%emt
00:00:05]} 2. Nf3 {[%clk 00:45:26]} {[%emt 00:00:03]} Nc6 {[%clk 00:45:21]}
{[%emt 00:00:04]} 3. Bb5 {[%clk 00:45:33]} {[%emt 00:00:03]} Nf6 {[%clk
00:45:28]} {[%emt 00:00:03]} 4. d3 {[%clk 00:45:41]} {[%emt 00:00:03]} d6
{[%clk 00:45:34]} {[%emt 00:00:03]} 5. O-O {[%clk 00:45:47]} {[%emt 00:00:05]}
a6 {[%clk 00:45:40]} {[%emt 00:00:04]} 6. Bxc6+ {[%clk 00:43:39]} {[%emt
00:02:19]} bxc6 {[%clk 00:45:46]} {[%emt 00:00:03]} 7. d4 {[%clk 00:43:48]}
exd4 {[%clk 00:32:01]} {[%emt 00:13:56]} 8. Nxd4 {[%clk 00:43:54]} {[%emt
00:00:04]} Bd7 {[%clk 00:30:42]} {[%emt 00:01:30]} 9. Nc3 {[%clk 00:36:37]}
{[%emt 00:07:27]} Be7 {[%clk 00:30:36]} {[%emt 00:00:16]} 10. Qf3 {[%clk
00:32:43]} {[%emt 00:04:03]} O-O {[%clk 00:29:13]} {[%emt 00:01:33]} 11. b3
{[%clk 00:31:11]} {[%emt 00:01:43]} Re8 {[%clk 00:28:34]} {[%emt 00:00:48]} 12.
Bb2 {[%clk 00:30:59]} {[%emt 00:00:22]} Bf8 {[%clk 00:27:19]} {[%emt 00:01:26]}
13. Rfe1 {[%clk 00:29:30]} {[%emt 00:01:40]} c5 {[%clk 00:26:29]} {[%emt
00:01:00]} 14. Nde2 {[%clk 00:26:29]} {[%emt 00:03:10]} g6 {[%clk 00:24:48]}
{[%emt 00:01:50]} 15. Rad1 {[%clk 00:25:12]} {[%emt 00:01:28]} Bg7 {[%clk
00:24:13]} {[%emt 00:00:44]} 16. Ba1 {[%clk 00:21:35]} {[%emt 00:03:48]} Qc8
{[%clk 00:18:22]} {[%emt 00:06:00]} 17. h3 {[%clk 00:21:10]} {[%emt 00:00:35]}
Qb7 {[%clk 00:18:14]} {[%emt 00:00:18]} 18. Nf4 {[%clk 00:20:09]} {[%emt
00:01:09]} Bc6 {[%clk 00:15:00]} {[%emt 00:03:25]} 19. Ncd5 {[%clk 00:18:37]}
{[%emt 00:01:41]} Bxd5 {[%clk 00:11:27]} {[%emt 00:03:44]} 20. exd5 {[%clk
00:18:18]} {[%emt 00:00:29]} Nd7 {[%clk 00:10:30]} {[%emt 00:01:07]} 21. Bxg7
{[%clk 00:14:27]} {[%emt 00:04:01]} Kxg7 {[%clk 00:10:38]} {[%emt 00:00:02]} 22.
h4 {[%clk 00:14:35]} {[%emt 00:00:02]} Ne5 {[%clk 00:07:28]} {[%emt 00:03:20]}
23. Qg3 {[%clk 00:14:15]} {[%emt 00:00:29]} Kh8 {[%clk 00:03:41]} {[%emt
00:03:58]} 24. Re3 {[%clk 00:09:28]} {[%emt 00:04:57]} c4 {[%clk 00:00:40]}
{[%emt 00:03:11]} 25. Qg5 {[%clk 00:06:00]} {[%emt 00:03:38]} cxb3 {[%clk
00:00:13]} {[%emt 00:00:37]} 26. axb3 {[%clk 00:05:36]} {[%emt 00:00:34]} Qc8
{[%clk 00:00:12]} {[%emt 00:00:11]} 27. Rde1 {[%clk 00:04:48]} {[%emt
00:00:58]} Rf8 {[%clk 00:00:11]} {[%emt 00:00:11]} 28. Rg3 {[%clk 00:03:28]}
{[%emt 00:01:29]} Qd8 {[%clk 00:00:12]} {[%emt 00:00:10]} 29. Qh6 {[%clk
00:03:37]} {[%emt 00:00:02]} Rg8 {[%clk 00:00:12]} {[%emt 00:00:10]} 30. Nh3
{[%clk 00:02:51]} {[%emt 00:00:55]} Qf6 {[%clk 00:00:14]} {[%emt 00:00:08]} 31.
f4 {[%clk 00:02:05]} {[%emt 00:00:56]} Nd7 {[%clk 00:00:18]} {[%emt 00:00:05]}
32. Ng5 {[%clk 00:02:15]} Rg7 {[%clk 00:00:18]} {[%emt 00:00:10]} 33. h5 {[%clk
00:02:02]} {[%emt 00:00:23]} Qxf4 {[%clk 00:00:20]} {[%emt 00:00:08]} 34. Rh3
{[%clk 00:01:49]} {[%emt 00:00:23]} Ne5 {[%clk 00:00:12]} {[%emt 00:00:19]} 35.
hxg6 {[%clk 00:01:51]} {[%emt 00:00:08]} fxg6 {[%clk 00:00:19]} {[%emt
00:00:03]} 36. Qxg7+ {[%clk 00:01:58]} {[%emt 00:00:03]} 1-0

[Event "FIDE U16 Olympiad_boards_1-80"]
[Site "Eindhoven, Netherlands"]
[Date "2023.08.14"]
[Round "3.8"]
[White "Maria, Lia-Alexandra"]
[Black "Lu, Miaoyi"]
[Result "0-1"]
[TimeControl "2700+10"]
[WhiteElo "1859"]
[BlackElo "2170"]

1. e4 {[%clk 00:45:17]} {[%emt 00:00:02]} c5 {[%clk 00:45:19]} 2. Nf3 {[%clk
00:45:26]} {[%emt 00:00:01]} e6 {[%clk 00:45:28]} 3. d4 {[%clk 00:45:35]}
{[%emt 00:00:02]} cxd4 {[%clk 00:45:37]} {[%emt 00:00:01]} 4. Nxd4 {[%clk
00:45:43]} {[%emt 00:00:02]} Nf6 {[%clk 00:45:45]} {[%emt 00:00:02]} 5. Nc3
{[%clk 00:45:51]} {[%emt 00:00:02]} Nc6 {[%clk 00:45:54]} {[%emt 00:00:01]} 6.
Nxc6 {[%clk 00:45:59]} {[%emt 00:00:02]} bxc6 {[%clk 00:46:02]} {[%emt
00:00:02]} 7. e5 {[%clk 00:46:08]} {[%emt 00:00:01]} Nd5 {[%clk 00:46:11]}
{[%emt 00:00:02]} 8. Ne4 {[%clk 00:46:17]} Bb7 {[%clk 00:46:18]} {[%emt
00:00:03]} 9. c4 {[%clk 00:43:27]} {[%emt 00:02:59]} Nb4 {[%clk 00:46:27]}
{[%emt 00:00:02]} 10. c5 {[%clk 00:34:52]} {[%emt 00:08:46]} Qb8 {[%clk
00:46:33]} {[%emt 00:00:03]} 11. Nd6+ {[%clk 00:32:59]} {[%emt 00:02:02]} Bxd6
{[%clk 00:46:41]} {[%emt 00:00:02]} 12. exd6 {[%clk 00:32:52]} {[%emt
00:00:17]} Ba6 {[%clk 00:46:34]} {[%emt 00:00:17]} 13. Bxa6 {[%clk 00:31:53]}
{[%emt 00:01:09]} Nxa6 {[%clk 00:46:41]} {[%emt 00:00:02]} 14. O-O {[%clk
00:31:56]} {[%emt 00:00:07]} O-O {[%clk 00:41:52]} {[%emt 00:05:00]} 15. Qd4
{[%clk 00:27:36]} {[%emt 00:04:29]} Qb5 {[%clk 00:35:56]} {[%emt 00:06:06]} 16.
Be3 {[%clk 00:26:50]} {[%emt 00:00:57]} Nb4 {[%clk 00:36:04]} {[%emt 00:00:02]}
17. Rfc1 {[%clk 00:25:55]} {[%emt 00:01:04]} Nd5 {[%clk 00:32:31]} {[%emt
00:03:44]} 18. Bd2 {[%clk 00:25:28]} {[%emt 00:00:37]} a5 {[%clk 00:30:52]}
{[%emt 00:01:49]} 19. a4 {[%clk 00:24:45]} {[%emt 00:00:52]} Qb7 {[%clk
00:28:46]} {[%emt 00:02:17]} 20. Ra3 {[%clk 00:24:19]} {[%emt 00:00:36]} f6
{[%clk 00:27:27]} {[%emt 00:01:29]} 21. Rc2 {[%clk 00:19:47]} {[%emt 00:04:42]}
Rf7 {[%emt 00:06:42]} 22. f4 {[%clk 00:17:48]} Re8 {[%clk 00:15:37]} {[%emt
00:07:37]} 23. Qe4 {[%clk 00:13:49]} {[%emt 00:04:09]} Qa7 {[%clk 00:10:36]}
{[%emt 00:05:11]} 24. Rh3 {[%clk 00:11:07]} {[%emt 00:02:52]} f5 {[%clk
00:09:44]} {[%emt 00:01:03]} 25. Qe2 {[%clk 00:09:21]} {[%emt 00:01:53]} Nf6
{[%clk 00:09:18]} {[%emt 00:00:38]} 26. Be1 {[%clk 00:08:00]} {[%emt 00:01:30]}
Ne4 {[%clk 00:05:57]} {[%emt 00:03:31]} 27. Bf2 {[%clk 00:06:11]} {[%emt
00:01:59]} e5 {[%clk 00:06:01]} {[%emt 00:00:06]} 28. fxe5 {[%clk 00:05:58]}
{[%emt 00:00:23]} Rxe5 {[%clk 00:06:08]} {[%emt 00:00:04]} 29. Bd4 {[%clk
00:06:00]} {[%emt 00:00:08]} Re6 {[%clk 00:03:44]} {[%emt 00:02:34]} 30. Re3
{[%clk 00:05:17]} {[%emt 00:00:53]} Rf8 {[%clk 00:03:41]} {[%emt 00:00:14]} 31.
g4 {[%clk 00:04:11]} {[%emt 00:01:16]} Ng5 {[%clk 00:01:23]} {[%emt 00:02:28]}
32. h4 {[%clk 00:03:32]} {[%emt 00:00:49]} Nh3+ {[%clk 00:01:08]} {[%emt
00:00:25]} 33. Kh2 {[%clk 00:03:18]} {[%emt 00:00:24]} Nf4 {[%clk 00:01:14]}
{[%emt 00:00:04]} 34. Qf3 {[%clk 00:02:58]} {[%emt 00:00:29]} fxg4 {[%clk
00:01:20]} {[%emt 00:00:05]} 35. Qxg4 {[%clk 00:03:05]} {[%emt 00:00:03]} Rg6
{[%clk 00:01:29]} {[%emt 00:00:01]} 36. Qd1 {[%clk 00:02:39]} {[%emt 00:00:36]}
Qb8 {[%clk 00:00:56]} {[%emt 00:00:43]} 37. Re7 {[%clk 00:02:14]} {[%emt
00:00:36]} Qb3 {[%clk 00:00:20]} {[%emt 00:00:47]} 38. Bc3 {[%clk 00:01:56]}
{[%emt 00:00:27]} Nd5 {[%clk 00:00:21]} {[%emt 00:00:09]} 39. h5 {[%clk
00:00:41]} {[%emt 00:01:26]} Rg5 {[%clk 00:00:20]} {[%emt 00:00:10]} 40. h6
{[%clk 00:00:43]} {[%emt 00:00:08]} Nxe7 {[%clk 00:00:16]} {[%emt 00:00:14]} 41.
dxe7 {[%clk 00:00:51]} {[%emt 00:00:02]} Re8 {[%clk 00:00:21]} {[%emt
00:00:05]} 42. hxg7 {[%clk 00:00:49]} {[%emt 00:00:12]} Qxa4 {[%clk 00:00:18]}
{[%emt 00:00:13]} 43. Bd4 {[%clk 00:00:45]} {[%emt 00:00:14]} Qb3 {[%clk
00:00:18]} {[%emt 00:00:10]} 44. Rf2 {[%clk 00:00:44]} {[%emt 00:00:11]} Qg3+
{[%clk 00:00:21]} {[%emt 00:00:07]} 45. Kh1 {[%clk 00:00:51]} {[%emt 00:00:03]}
Qh4+ {[%clk 00:00:17]} {[%emt 00:00:14]} 46. Rh2 {[%clk 00:00:59]} {[%emt
00:00:02]} Qe4+ {[%clk 00:00:26]} {[%emt 00:00:01]} 0-1